fUSD/lending_fUSD_20251224
["ID","MTS","AMOUNT","RATE_DAILY","PERIOD"]
[399682656,1766616648132,-500.0,0.0001899,2]
[399682657,1766616648142,-500.0,0.0001899,2]
[399682658,1766616648151,-500.0,0.0001899,2]
[399682659,1766616648162,-500.0,0.0001899,2]
[399682660,1766616648172,-500.0,0.0001899,2]
[399682661,1766616648182,-500.0,0.0001899,2]
[399682662,1766616648191,-500.0,0.0001899,2]
[399682663,1766616648200,-500.0,0.0001899,2]
[399682664,1766616648210,-500.0,0.0001899,2]
[399682665,1766616648220,-500.0,0.0001899,2]
[399682666,1766616648230,-500.0,0.0001899,2]
[399682667,1766616648239,-500.0,0.0001899,2]
[399682668,1766616648249,-500.0,0.0001899,2]
[399682669,1766616648259,-500.0,0.0001899,2]
[399682670,1766616648269,-500.0,0.0001899,2]
[399682671,1766616648279,-500.0,0.0001899,2]
[399682672,1766616648290,-500.0,0.0001899,2]
[399682673,1766616648301,-500.0,0.0001899,2]
[399682674,1766616648311,-500.0,0.0001899,2]
[399682675,1766616648320,-500.0,0.0001899,2]
[399682676,1766616648331,-500.0,0.0001899,2]
[399682677,1766616648341,-500.0,0.0001899,2]
[399682678,1766616648350,-500.0,0.0001899,2]
[399682679,1766616648360,-500.0,0.0001899,2]
[399682680,1766616648370,-500.0,0.0001899,2]
[399682681,1766616648380,-500.0,0.0001899,2]
[399682682,1766616648390,-500.0,0.0001899,2]
[399682683,1766616648399,-500.0,0.0001899,2]
[399682684,1766616648409,-500.0,0.0001899,2]
[399682685,1766616648419,-500.0,0.0001899,2]
[399682686,1766616648428,-500.0,0.0001899,2]
[399682687,1766616648438,-500.0,0.0001899,2]
[399682688,1766616648448,-500.0,0.0001899,2]
[399682689,1766616648457,-500.0,0.0001899,2]
[399682690,1766616648467,-500.0,0.0001899,2]
[399682691,1766616648477,-500.0,0.0001899,2]
[399682692,1766616648487,-500.0,0.0001899,2]
[399682693,1766616648497,-500.0,0.0001899,2]
[399682694,1766616648507,-500.0,0.0001899,2]
[399682695,1766616648516,-500.0,0.0001899,2]
[399682696,1766616648526,-500.0,0.0001899,2]
[399682697,1766616648536,-500.0,0.0001899,2]
[399682698,1766616648547,-500.0,0.0001899,2]
[399682699,1766616648557,-500.0,0.0001899,2]
[399682700,1766616648567,-500.0,0.0001899,2]
[399682701,1766616648577,-500.0,0.0001899,2]
[399682702,1766616648586,-500.0,0.0001899,2]
[399682703,1766616648596,-500.0,0.0001899,2]
[399682704,1766616648606,-500.0,0.0001899,2]
[399682705,1766616648621,-500.0,0.0001899,2]
[399682706,1766616648631,-500.0,0.0001899,2]
[399682707,1766616648641,-500.0,0.0001899,2]
[399682708,1766616648651,-500.0,0.0001899,2]
[399682709,1766616648661,-500.0,0.0001899,2]
[399682710,1766616648670,-500.0,0.0001899,2]
[399682711,1766616648680,-500.0,0.0001899,2]
[399682712,1766616648691,-500.0,0.0001899,2]
[399682713,1766616648703,-500.0,0.0001899,2]
[399682714,1766616648712,-500.0,0.0001899,2]
[399682715,1766616648721,-500.0,0.0001899,2]
[399682716,1766616648731,-500.0,0.0001899,2]
[399682717,1766616648740,-500.0,0.0001899,2]
[399682718,1766616648749,-500.0,0.0001899,2]
[399682719,1766616648759,-500.0,0.0001899,2]
[399682720,1766616648768,-500.0,0.0001899,2]
[399682721,1766616648782,-500.0,0.0001899,2]
[399682722,1766616648792,-500.0,0.0001899,2]
[399682723,1766616648802,-500.0,0.0001899,2]
[399682724,1766616648812,-500.0,0.0001899,2]
[399682725,1766616648821,-500.0,0.0001899,2]
[399682726,1766616648831,-500.0,0.0001899,2]
[399682727,1766616648840,-500.0,0.0001899,2]
[399682728,1766616648849,-500.0,0.0001899,2]
[399682729,1766616648859,-500.0,0.0001899,2]
[399682730,1766616648868,-500.0,0.0001899,2]
[399682731,1766616648878,-500.0,0.0001899,2]
[399682732,1766616648888,-500.0,0.0001899,2]
[399682733,1766616648898,-500.0,0.0001899,2]
[399682734,1766616648907,-500.0,0.0001899,2]
[399682735,1766616648917,-500.0,0.0001899,2]
[399682736,1766616648926,-500.0,0.0001899,2]
[399682737,1766616648935,-500.0,0.0001899,2]
[399682738,1766616648945,-500.0,0.0001899,2]
[399682739,1766616648954,-500.0,0.0001899,2]
[399682740,1766616648964,-500.0,0.0001899,2]
[399682741,1766616648974,-500.0,0.0001899,2]
[399682742,1766616648983,-500.0,0.0001899,2]
[399682743,1766616649254,-500.0,0.0001899,2]
[399682744,1766616649268,-500.0,0.0001899,2]
[399682745,1766616649278,-500.0,0.0001899,2]
[399682746,1766616649287,-500.0,0.0001899,2]
[399682747,1766616649297,-500.0,0.0001899,2]
[399682748,1766616649306,-500.0,0.0001899,2]
[399682749,1766616649316,-500.0,0.0001899,2]
[399682750,1766616649326,-500.0,0.0001899,2]
[399682751,1766616649337,-500.0,0.0001899,2]
[399682752,1766616649346,-500.0,0.0001899,2]
[399682753,1766616649356,-500.0,0.0001899,2]
[399682754,1766616649365,-500.0,0.0001899,2]
[399682755,1766616649375,-500.0,0.0001899,2]
[399682756,1766616649386,-500.0,0.0001899,2]
[399682757,1766616649407,-500.0,0.0001899,2]
[399682758,1766616649417,-500.0,0.0001899,2]
[399682759,1766616649427,-500.0,0.0001899,2]
[399682760,1766616649436,-500.0,0.0001899,2]
[399682761,1766616649446,-500.0,0.0001899,2]
[399682762,1766616649455,-500.0,0.0001899,2]
[399682763,1766616649465,-500.0,0.0001899,2]
[399682764,1766616649475,-500.0,0.0001899,2]
[399682765,1766616649484,-500.0,0.0001899,2]
[399682766,1766616649493,-500.0,0.0001899,2]
[399682767,1766616649503,-500.0,0.0001899,2]
[399682768,1766616649512,-500.0,0.0001899,2]
[399682769,1766616649521,-500.0,0.0001899,2]
[399682770,1766616649530,-500.0,0.0001899,2]
[399682771,1766616649540,-500.0,0.0001899,2]
[399682772,1766616649549,-500.0,0.0001899,2]
[399682773,1766616649558,-500.0,0.0001899,2]
[399682774,1766616649568,-500.0,0.0001899,2]
[399682775,1766616649577,-500.0,0.0001899,2]
[399682776,1766616649587,-500.0,0.0001899,2]
[399682777,1766616649596,-500.0,0.0001899,2]
[399682778,1766616649606,-500.0,0.0001899,2]
[399682779,1766616649619,-500.0,0.0001899,2]
[399682780,1766616649628,-500.0,0.0001899,2]
[399682781,1766616649638,-500.0,0.0001899,2]
[399682782,1766616649647,-500.0,0.0001899,2]
[399682783,1766616649657,-500.0,0.0001899,2]
[399682784,1766616649666,-500.0,0.0001899,2]
[399682785,1766616649676,-500.0,0.0001899,2]
[399682786,1766616649686,-500.0,0.0001899,2]
[399682787,1766616649695,-500.0,0.0001899,2]
[399682788,1766616649704,-500.0,0.0001899,2]
[399682789,1766616649713,-500.0,0.0001899,2]
[399682790,1766616649723,-500.0,0.0001899,2]
[399682791,1766616649732,-500.0,0.0001899,2]
[399682792,1766616649741,-500.0,0.0001899,2]
[399682793,1766616649750,-500.0,0.0001899,2]
[399682794,1766616649760,-500.0,0.0001899,2]
[399682795,1766616649769,-500.0,0.0001899,2]
[399682796,1766616649779,-500.0,0.0001899,2]
[399682797,1766616649788,-500.0,0.0001899,2]
[399682798,1766616649798,-500.0,0.0001899,2]
[399682799,1766616649807,-500.0,0.0001899,2]
[399682800,1766616649817,-500.0,0.0001899,2]
[399682801,1766616649827,-500.0,0.0001899,2]
[399682802,1766616649836,-500.0,0.0001899,2]
[399682803,1766616649845,-500.0,0.0001899,2]
[399682804,1766616649855,-500.0,0.0001899,2]
[399682805,1766616649865,-500.0,0.0001899,2]
[399682806,1766616649874,-500.0,0.0001899,2]
[399682807,1766616649884,-500.0,0.0001899,2]
[399682808,1766616649894,-500.0,0.0001899,2]
[399682809,1766616649903,-500.0,0.0001899,2]
[399682810,1766616649913,-500.0,0.0001899,2]
[399682811,1766616649922,-500.0,0.0001899,2]
[399682812,1766616649932,-500.0,0.0001899,2]
[399682813,1766616649941,-500.0,0.0001899,2]
[399682814,1766616649951,-500.0,0.0001899,2]
[399682815,1766616649961,-500.0,0.0001899,2]
[399682816,1766616649971,-500.0,0.0001899,2]
[399682817,1766616649980,-500.0,0.0001899,2]
[399682818,1766616649990,-500.0,0.0001899,2]
[399682819,1766616650000,-500.0,0.0001899,2]
[399682820,1766616650009,-500.0,0.0001899,2]
[399682821,1766616650019,-500.0,0.0001899,2]
[399682822,1766616650029,-500.0,0.0001899,2]
[399682823,1766616650038,-500.0,0.0001899,2]
[399682824,1766616650048,-500.0,0.0001899,2]
[399682825,1766616650057,-500.0,0.0001899,2]
[399682826,1766616650068,-500.0,0.0001899,2]
[399682827,1766616650077,-500.0,0.0001899,2]
[399682828,1766616650087,-500.0,0.0001899,2]
[399682829,1766616650096,-500.0,0.0001899,2]
[399682830,1766616650106,-500.0,0.0001899,2]
[399682831,1766616650115,-500.0,0.0001899,2]
[399682832,1766616650125,-500.0,0.0001899,2]
[399682833,1766616650135,-500.0,0.0001899,2]
[399682834,1766616650144,-500.0,0.0001899,2]
[399682835,1766616650153,-500.0,0.0001899,2]
[399682836,1766616650162,-500.0,0.0001899,2]
[399682837,1766616650172,-500.0,0.0001899,2]
[399682838,1766616650181,-500.0,0.0001899,2]
[399682839,1766616650191,-500.0,0.0001899,2]
[399682840,1766616650200,-500.0,0.0001899,2]
[399682841,1766616650210,-500.0,0.0001899,2]
[399682842,1766616650219,-500.0,0.0001899,2]
[399682843,1766616650228,-500.0,0.0001899,2]
[399682844,1766616650237,-500.0,0.0001899,2]
[399682845,1766616650246,-500.0,0.0001899,2]
[399682846,1766616650256,-500.0,0.0001899,2]
[399682847,1766616650265,-500.0,0.0001899,2]
[399682848,1766616650275,-500.0,0.0001899,2]
[399682849,1766616650285,-500.0,0.0001899,2]
[399682850,1766616650294,-500.0,0.0001899,2]
[399682851,1766616650304,-500.0,0.0001899,2]
[399682852,1766616650313,-500.0,0.0001899,2]
[399682853,1766616650323,-500.0,0.0001899,2]
[399682854,1766616650332,-500.0,0.0001899,2]
[399682855,1766616650341,-500.0,0.0001899,2]
[399682856,1766616650351,-500.0,0.0001899,2]
[399682857,1766616650360,-500.0,0.0001899,2]
[399682858,1766616650369,-500.0,0.0001899,2]
[399682859,1766616650379,-500.0,0.0001899,2]
[399682860,1766616650388,-500.0,0.0001899,2]
[399682861,1766616650397,-500.0,0.0001899,2]
[399682862,1766616650407,-500.0,0.0001899,2]
[399682863,1766616650416,-500.0,0.0001899,2]
[399682864,1766616650425,-500.0,0.0001899,2]
[399682865,1766616650434,-500.0,0.0001899,2]
[399682866,1766616650443,-500.0,0.0001899,2]
[399682867,1766616650453,-500.0,0.0001899,2]
[399682868,1766616650462,-500.0,0.0001899,2]
[399682869,1766616650472,-500.0,0.0001899,2]
[399682870,1766616650481,-500.0,0.0001899,2]
[399682871,1766616650490,-500.0,0.0001899,2]
[399682872,1766616650500,-500.0,0.0001899,2]
[399682873,1766616650509,-500.0,0.0001899,2]
[399682874,1766616650519,-500.0,0.0001899,2]
[399682875,1766616650528,-500.0,0.0001899,2]
[399682876,1766616650538,-838.0,0.0001899,2]
[399682877,1766616650547,-500.0,0.0001899,2]
[399682878,1766616650556,-5150.5609363,0.00019,2]
[399682879,1766616650565,-28018.98612305,0.00019,2]
[399682880,1766616651041,-229.74900433,0.00017,2]
[399682881,1766616651051,-462.86934295,0.00017,2]
[399682882,1766616651073,-264.0,0.00015611,2]
[399682883,1766616651082,-793.13065705,0.00017,2]
[399682884,1766616651092,-152.0,0.00017,2]
[399682885,1766616651101,-8059.80967812,0.00019,2]
[399682886,1766616651113,-83355.74826646,0.00019,2]
[399682889,1766616737235,10000.01,0.00012514,2]
[399682890,1766616741789,-533.64737125,0.00012514,2]
[399682891,1766616772146,-232.21514264,0.00012513,2]
[399682892,1766616773829,-403.50834349,0.00012513,2]
[399682893,1766616776347,-8.53605593,0.00012513,2]
[399682894,1766616776372,-223.2732872,0.00012513,2]
[399682895,1766616776403,-35.52813108,0.00012513,2]
[399682896,1766616779129,-156.41160817,0.00012513,2]
[399682897,1766616780725,-235.03074842,0.00012513,2]
[399682898,1766616784118,-175.38518518,0.0001245,2]
[399682899,1766616802601,-288.12267172,0.0001245,2]
[399682900,1766616804162,-226.81699666,0.0001245,2]
[399682901,1766616806182,-220.44174219,0.0001244,2]
[399682902,1766616807737,-47.17278548,0.0001244,2]
[399682903,1766616807761,-443.09729086,0.0001245,2]
[399682904,1766616809510,-165.8939225,0.0001245,2]
[399682905,1766616811317,-156.15921717,0.0001245,2]
[399682906,1766616816865,-336.23586509,0.0001244,2]
[399682907,1766616818399,-220.95525387,0.0001244,2]
[399682908,1766616818422,-166.16011591,0.0001245,2]
[399682909,1766616818446,-300.0,0.00012512,2]
[399682910,1766616818469,-6.74029659,0.00012512,2]
[399682911,1766616831774,-214.25970341,0.00012512,2]
[399682912,1766616831797,-130.53249742,0.00012513,2]
[399682913,1766616834435,-19.46750258,0.00012513,2]
[399682914,1766616834465,-73.02951233,0.00012513,2]
[399682915,1766616834493,-98.25384336,0.00012513,2]
[399682916,1766616838501,-300.0,0.00012513,2]
[399682917,1766616840569,-101.74615664,0.00012513,2]
[399682918,1766616840600,-79.74949037,0.00012513,2]
[399682919,1766616847963,-253.351569,0.00012512,2]
[399682920,1766616876748,-46.648431,0.00012512,2]
[399682921,1766616876779,-253.351569,0.00012513,2]
[399682922,1766616886464,-166.89894063,0.00012513,2]
[399682923,1766616886505,-500.0,0.00012513,2]
[399682924,1766616886545,-593.62813953,0.00012513,2]
[399682925,1766616886586,-500.0,0.00012513,2]
[399682926,1766616886619,-150.0,0.00012513,2]
[399682927,1766616886658,-300.0,0.00012513,2]
[399682928,1766616892384,-209.742693,0.00012514,2]
[399682929,1766616898030,-267.90004059,0.00012514,2]
[399682930,1766616900361,-187.54426871,0.00012514,2]
[399682931,1766616901180,198.0,0.00012513,2]
[399682932,1766616901221,1200.0,0.00012513,2]
[399682933,1766616901419,300.0,0.00012513,2]
[399682934,1766616904637,-341.99827021,0.00012513,2]
[399682935,1766616906147,-158.00172979,0.00012513,2]
[399682936,1766616906181,-137.30006415,0.00012513,2]
[399682937,1766616910070,-201.93541913,0.00012513,2]
[399682938,1766616913332,-160.76451672,0.00012513,2]
[399682939,1766616913368,-10.9271903,0.00012514,2]
[399682940,1766616916596,-176.67626731,0.00012514,2]
[399682941,1766616919939,-282.2031428,0.00012514,2]
[399682942,1766616922734,-186.58389147,0.00012514,2]
[399682943,1766616925102,-234.68775036,0.00012514,2]
[399682944,1766616929178,-300.0,0.00012514,2]
[399682945,1766616932471,-252.70404098,0.00012514,2]
[399682946,1766616934834,-160.79287812,0.00012514,2]
[399682947,1766616936545,-300.0,0.00012514,2]
[399682948,1766616938162,-291.47211502,0.00012514,2]
[399682949,1766616940878,-242.26357046,0.00012514,2]
[399682950,1766616943573,-283.63239317,0.00012514,2]
[399682951,1766616944586,178.40968512,0.0001244,2]
[399682952,1766616945157,-155.77863173,0.00012514,2]
[399682953,1766616946819,-252.51769995,0.00012514,2]
[399682954,1766616966896,-362.80827377,0.00012514,2]
[399682955,1766616969959,-166.66,0.00012514,2]
[399682956,1766616972843,-224.38656483,0.00012514,2]
[399682957,1766616974590,-320.87010147,0.00012514,2]
[399682958,1766616977686,-235.57626546,0.00012514,2]
[399682959,1766616979911,-340.30061707,0.00012514,2]
[399682960,1766616983238,-200.0,0.00012514,2]
[399682961,1766616996792,-169.30485527,0.00012514,2]
[399682962,1766616998927,-177.91307375,0.00012514,2]
[399682963,1766617021737,150.0,0.00012513,2]
[399682964,1766617039799,500.0,0.000176,30]
[399682965,1766617040122,500.0,0.00017,30]
[399682966,1766617041751,-537.99660956,0.00012514,2]
[399682967,1766617043441,225.31,0.00012,21]
[399682968,1766617044299,-443.64321213,0.00012514,2]
[399682969,1766617047649,500.0,0.000176,30]
[399682970,1766617048006,-277.73185187,0.00012514,2]
[399682971,1766617050684,-201.17741891,0.00012514,2]
[399682972,1766617054123,-671.55637566,0.00012514,2]
[399682973,1766617056245,-264.55332962,0.00012514,2]
[399682974,1766617071822,-392.75244996,0.00012514,2]
[399682975,1766617077281,-201.75917607,0.00012514,2]
[399682976,1766617078385,-257.3312713,0.00012514,2]
[399682977,1766617079871,-386.71585057,0.00012514,2]
[399682978,1766617081230,300.0,0.00012513,2]
[399682979,1766617081991,-226.32515273,0.00012514,2]
[399682980,1766617084810,178.40968511,0.00012421,2]
[399682981,1766617084848,-263.79702715,0.00012514,2]
[399682982,1766617101785,-201.71822738,0.00012514,2]
[399682983,1766617103870,-233.0445807,0.00012514,2]
[399682984,1766617108606,-357.49856696,0.00012514,2]
[399682985,1766617109868,-350.2803979,0.00012514,2]
[399682986,1766617112195,-291.77566627,0.00012514,2]
[399682987,1766617116307,-160.16794915,0.00012514,2]
[399682988,1766617119149,-279.48633976,0.00012514,2]
[399682989,1766617141273,300.0,0.00012513,2]
[399682990,1766617200149,1974.12274087,0.00012421,2]
[399682991,1766617201186,300.0,0.00012513,2]
[399682992,1766617201232,1200.0,0.00012513,2]
[399682993,1766617201386,300.0,0.00012513,2]
[399682994,1766617201979,150.0,0.00012513,2]
[399682995,1766617211809,500.0,0.00012513,2]
[399682996,1766617216364,178.40968511,0.00012414,2]
[399682997,1766617273339,358.67959618,0.00012414,2]
[399682998,1766617294187,2473.85,0.00012264,2]
[399682999,1766617294441,264.725,0.00012264,2]
[399683000,1766617321318,300.0,0.00012513,2]
[399683001,1766617372381,-297.26,0.00012514,2]
[399683002,1766617382824,150.0,0.00012513,2]
[399683003,1766617441213,300.0,0.00012513,2]
[399683004,1766617501133,300.0,0.00012513,2]
[399683005,1766617501176,143.40360761,0.00012513,2]
[399683006,1766617501203,1056.59639239,0.00012513,2]
[399683007,1766617507399,-492.43574919,0.00012514,2]
[399683008,1766617510124,-370.60413809,0.00012514,2]
[399683009,1766617522362,-293.45686372,0.00012514,2]
[399683010,1766617536858,-202.62648438,0.00012514,2]
[399683011,1766617551793,-289.06394144,0.00012514,2]
[399683012,1766617555188,-237.73537449,0.00012514,2]
[399683013,1766617557642,-275.6584545,0.00012514,2]
[399683014,1766617559746,-245.99778002,0.00012514,2]
[399683015,1766617562401,150.0,0.00012513,2]
[399683016,1766617566801,-300.0,0.00012514,2]
[399683017,1766617568300,-606.05829659,0.00012514,2]
[399683018,1766617570984,-302.00611386,0.00012514,2]
[399683019,1766617586355,1776.71046681,0.00012414,2]
[399683020,1766617621553,300.0,0.00012513,2]
[399683021,1766617681271,300.0,0.00012513,2]
[399683022,1766617741384,300.0,0.00012513,2]
[399683023,1766617741560,150.0,0.00012513,2]
[399683024,1766617746870,-288.90533939,0.00012514,2]
[399683025,1766617749603,-220.45658712,0.00012514,2]
[399683026,1766617751273,-217.60455001,0.00012514,2]
[399683027,1766617752824,-204.72190576,0.00012514,2]
[399683028,1766617757609,-211.09466061,0.00012514,2]
[399683029,1766617764400,-288.90533939,0.00012514,2]
[399683030,1766617764425,-39.16664607,0.00012514,2]
[399683031,1766617805188,1030.94,0.00021918,30]
[399683036,1766617831626,-460.83335393,0.00012514,2]
[399683037,1766617831640,-500.0,0.00012514,2]
[399683038,1766617831652,-500.0,0.00012514,2]
[399683039,1766617831662,-250.0,0.00012514,2]
[399683040,1766617831672,-253.0,0.00012514,2]
[399683041,1766617831682,-268.04050505,0.00012514,2]
[399683042,1766617831692,-151.0,0.00012514,2]
[399683043,1766617831702,-250.0,0.00012519,2]
[399683044,1766617831712,-1200.0,0.00012979,2]
[399683045,1766617831722,-1000.0,0.0001298,2]
[399683046,1766617831733,-1410.21324175,0.000135,2]
[399683047,1766617831743,-255.0,0.00013602,2]
[399683048,1766617831753,-1500.0,0.00013629,2]
[399683049,1766617831764,-300.0,0.00013664,2]
[399683050,1766617831774,-247.27559818,0.00013665,2]
[399683052,1766617831784,-500.0,0.00013698,2]
[399683053,1766617831794,-500.0,0.00013698,2]
[399683054,1766617831804,-469.51043734,0.00013698,2]
[399683055,1766617831814,-500.0,0.00013698,2]
[399683056,1766617831824,-500.0,0.00013698,2]
[399683057,1766617831834,-150.99,0.00013698,2]
[399683058,1766617831844,-299.99,0.00013698,2]
[399683060,1766617831854,-1577.15,0.00013698,2]
[399683062,1766617831863,-1808.33,0.00013698,2]
[399683064,1766617831872,-9999.99,0.00013698,2]
[399683066,1766617831882,-532.74252407,0.00013698,2]
[399683068,1766617831892,-500.0,0.00013698,2]
[399683070,1766617831902,-500.0,0.00013698,2]
[399683072,1766617831911,-1000.0,0.00013699,2]
[399683074,1766617831921,-257.07,0.0001372,2]
[399683076,1766617831931,-195.0,0.00013765,2]
[399683078,1766617831940,-195.0,0.00013765,2]
[399683080,1766617831950,-250.0,0.00013765,2]
[399683083,1766617831959,-195.0,0.00013765,2]
[399683085,1766617831969,-600.0,0.00013765,2]
[399683087,1766617831979,-600.0,0.00013765,2]
[399683089,1766617831989,-600.0,0.00013765,2]
[399683091,1766617831999,-600.0,0.00013765,2]
[399683092,1766617832008,-193.0,0.00013765,2]
[399683093,1766617832018,-195.0,0.00013765,2]
[399683094,1766617832028,-319.75546575,0.00013765,2]
[399683095,1766617832038,-322.6107,0.00013974,2]
[399683096,1766617832047,-578.20924308,0.00013974,2]
[399683097,1766617832057,-278.08020175,0.00013974,2]
[399683098,1766617832067,-678.90832973,0.00013974,2]
[399683099,1766617832078,-620.0,0.00013974,2]
[399683100,1766617832088,-500.0,0.00013974,2]
[399683101,1766617832098,-500.0,0.00013974,2]
[399683102,1766617832108,-500.0,0.00013974,2]
[399683103,1766617832119,-171.70723872,0.00013974,2]
[399683104,1766617832129,-287.61899177,0.00013974,2]
[399683105,1766617832140,-203.86,0.00013977,2]
[399683106,1766617832150,-6016.57,0.00014015,2]
[399683107,1766617832160,-5723.95,0.00014041,2]
[399683108,1766617832170,-368.2121661,0.00014048,2]
[399683109,1766617832180,-661.34860753,0.00014048,2]
[399683110,1766617832190,-1476.0,0.00014139,2]
[399683111,1766617832199,-1322.0,0.00014167,2]
[399683112,1766617832210,-1776.71046672,0.00014179,2]
[399683113,1766617832219,-1194.0,0.00014196,2]
[399683114,1766617832229,-304.0,0.00014211,2]
[399683115,1766617832239,-230.0,0.0001424,2]
[399683116,1766617832249,-1680.0,0.00014277,2]
[399683117,1766617832259,-1409.0,0.00014289,2]
[399683118,1766617832269,-831.0,0.00014317,2]
[399683119,1766617832280,-166.66,0.00014431,2]
[399683120,1766617832290,-307.88,0.00014675,2]
[399683121,1766617832300,-179.2,0.00014675,2]
[399683122,1766617832310,-166.66,0.00014735,2]
[399683123,1766617832321,-3827.0,0.00014743,2]
[399683124,1766617832331,-203.86,0.00014754,2]
[399683125,1766617832340,-433.0,0.0001479,2]
[399683126,1766617832350,-322.81163658,0.00014939,2]
[399683127,1766617832359,-89165.95401286,0.00014939,2]
[399683128,1766617832414,-287.59,0.00014939,2]
[399683129,1766617832427,-1168.18354245,0.00014939,2]
[399683130,1766617832439,-605.71259571,0.00014939,2]
[399683131,1766617832451,-449.66614174,0.00014939,2]
[399683132,1766617832474,-259.39015822,0.00014939,2]
[399683133,1766617832487,-257.87596969,0.00014939,2]
[399683134,1766617832499,-729.51283028,0.00014939,2]
[399683135,1766617837628,165.10888867,0.00012414,2]
[399683136,1766617837646,-450.98167944,0.00014938,2]
[399683137,1766617837657,-66.81067326,0.00014938,2]
[399683138,1766617837669,-89.48062778,0.00014938,2]
[399683139,1766617837678,-178.69367003,0.00014939,2]
[399683140,1766617837688,-1168.13785395,0.00014939,2]
[399683141,1766617837711,-908.48151348,0.00014939,2]
[399683153,1766617839663,-151.0,0.00014939,2]
[399683154,1766617839674,-1149.94465244,0.00014939,2]
[399683155,1766617839685,-380.9790429,0.00014939,2]
[399683157,1766617841249,-1.7e-07,0.00014939,2]
[399683158,1766617841267,-30832.23168611,0.00014939,2]
[399683159,1766617841277,-166.66,0.00015039,2]
[399683160,1766617841287,-3240.0,0.00015087,2]
[399683161,1766617841298,-986.89,0.000151,2]
[399683162,1766617841308,-1048.29,0.00015102,2]
[399683163,1766617841319,-2421.76,0.00015158,2]
[399683164,1766617841329,-151.0,0.00015315,2]
[399683165,1766617841339,-151.0,0.00015322,2]
[399683166,1766617841350,-166.66,0.00015343,2]
[399683167,1766617841360,-334.5472959,0.00015343,2]
[399683168,1766617841370,-169.97391259,0.00015343,2]
[399683169,1766617841380,-150.0,0.00015379,2]
[399683170,1766617841390,-1600.0,0.00015422,2]
[399683171,1766617841400,-203.86,0.0001553,2]
[399683172,1766617841411,-166.66,0.00015611,2]
[399683173,1766617841421,-166.66,0.00015646,2]
[399683174,1766617841431,-2351.0,0.00015705,2]
[399683175,1766617841441,-500.0,0.00015781,2]
[399683176,1766617841451,-151.0,0.00015905,2]
[399683177,1766617841461,-257.0,0.00015917,2]
[399683178,1766617841472,-1776.71046672,0.00015944,2]
[399683179,1766617841482,-166.66,0.0001595,2]
[399683180,1766617841493,-736.0,0.00016067,2]
[399683181,1766617841503,-257.0,0.00016089,2]
[399683182,1766617841512,-1609.0,0.00016102,2]
[399683183,1766617841522,-612.0,0.00016102,2]
[399683184,1766617841532,-1326.0,0.00016102,2]
[399683185,1766617841543,-3458.0,0.00016102,2]
[399683186,1766617841552,-1263.0,0.00016102,2]
[399683187,1766617841563,-432.0,0.00016102,2]
[399683188,1766617841572,-912.0,0.00016102,2]
[399683189,1766617841586,-1198.0,0.00016102,2]
[399683190,1766617841596,-2430.0,0.00016102,2]
[399683191,1766617841606,-4807.0,0.00016102,2]